[Event "Late-Titled-Tuesday-Blitz-July-09-2024"]
[Site "Chess.com"]
[Date "2024.07.09"]
[Round "2"]
[White "krzyzan94"]
[Black "Narek_Ghimoyan"]
[Result "0-1"]
[WhiteElo "2747"]
[BlackElo "2488"]
[TimeControl "180+1"]
[EndTime "14:19:33 PDT"]
[Termination "Narek_Ghimoyan won by resignation"]

1. e4 {[%clk 0:03:00.9]} 1... c5 {[%clk 0:02:59.5]} 2. Nf3 {[%clk 0:03:01]} 2...
e6 {[%clk 0:02:59.7]} 3. g3 {[%clk 0:02:58.2]} 3... Nc6 {[%clk 0:02:57.6]} 4.
Bg2 {[%clk 0:02:51.9]} 4... Nf6 {[%clk 0:02:57.9]} 5. Qe2 {[%clk 0:02:51.8]}
5... e5 {[%clk 0:02:58.4]} 6. O-O {[%clk 0:02:49.9]} 6... Be7 {[%clk 0:02:59]}
7. d3 {[%clk 0:02:46]} 7... O-O {[%clk 0:02:57.3]} 8. a4 {[%clk 0:02:44.4]} 8...
d6 {[%clk 0:02:57.2]} 9. Na3 {[%clk 0:02:42.9]} 9... h6 {[%clk 0:02:46.9]} 10.
c3 {[%clk 0:02:42.3]} 10... Be6 {[%clk 0:02:36.1]} 11. Nc4 {[%clk 0:02:41.8]}
11... Re8 {[%clk 0:02:35.1]} 12. Nh4 {[%clk 0:02:30.2]} 12... a6 {[%clk
0:02:33.9]} 13. Ne3 {[%clk 0:02:27.5]} 13... b5 {[%clk 0:02:30.5]} 14. Nhf5
{[%clk 0:02:21.7]} 14... Bf8 {[%clk 0:02:30.8]} 15. Bd2 {[%clk 0:02:09]} 15...
g6 {[%clk 0:02:15]} 16. Nh4 {[%clk 0:02:08.8]} 16... Bg7 {[%clk 0:02:15.2]} 17.
Kh1 {[%clk 0:01:53.3]} 17... Rb8 {[%clk 0:02:03.6]} 18. axb5 {[%clk 0:01:52.9]}
18... axb5 {[%clk 0:01:59.9]} 19. Ra6 {[%clk 0:01:52.1]} 19... Rb6 {[%clk
0:01:54.5]} 20. Rfa1 {[%clk 0:01:45.6]} 20... Rxa6 {[%clk 0:01:54.7]} 21. Rxa6
{[%clk 0:01:46.4]} 21... Qc8 {[%clk 0:01:55]} 22. Ra1 {[%clk 0:01:42]} 22... Qb7
{[%clk 0:01:33.9]} 23. f4 {[%clk 0:01:41.7]} 23... Bd7 {[%clk 0:01:30.7]} 24. f5
{[%clk 0:01:31.3]} 24... g5 {[%clk 0:01:29.5]} 25. Nf3 {[%clk 0:01:32]} 25...
Ra8 {[%clk 0:01:28.4]} 26. Qf1 {[%clk 0:01:31.3]} 26... Ra7 {[%clk 0:01:22.1]}
27. h4 {[%clk 0:01:26.6]} 27... g4 {[%clk 0:01:20]} 28. Nh2 {[%clk 0:01:24.7]}
28... h5 {[%clk 0:01:20.3]} 29. Rxa7 {[%clk 0:01:12.3]} 29... Qxa7 {[%clk
0:01:18.3]} 30. Nd5 {[%clk 0:01:13.2]} 30... Qa2 {[%clk 0:01:00]} 31. Bg5 {[%clk
0:01:11.5]} 31... Nxd5 {[%clk 0:00:54.1]} 32. exd5 {[%clk 0:01:11.7]} 32... Na5
{[%clk 0:00:54]} 33. f6 {[%clk 0:01:08.9]} 33... Bf8 {[%clk 0:00:48.3]} 34. Qe2
{[%clk 0:00:41.8]} 34... Qb1+ {[%clk 0:00:43.8]} 35. Nf1 {[%clk 0:00:42]} 35...
Bf5 {[%clk 0:00:41.9]} 36. Be4 {[%clk 0:00:34.9]} 36... Bxe4+ {[%clk 0:00:41.7]}
37. dxe4 {[%clk 0:00:35.8]} 37... Nc4 {[%clk 0:00:41.8]} 38. Kg2 {[%clk
0:00:16.4]} 38... Qxb2 {[%clk 0:00:40.4]} 39. Qxb2 {[%clk 0:00:16.6]} 39... Nxb2
{[%clk 0:00:41.3]} 40. Nd2 {[%clk 0:00:16.7]} 40... Kh7 {[%clk 0:00:36.7]} 41.
Nb3 {[%clk 0:00:13.6]} 41... Nd1 {[%clk 0:00:33.2]} 42. Bd2 {[%clk 0:00:12.1]}
42... Kg6 {[%clk 0:00:29.6]} 43. Kf1 {[%clk 0:00:11.4]} 43... Kxf6 {[%clk
0:00:28]} 44. Ke2 {[%clk 0:00:12]} 44... Nb2 {[%clk 0:00:28.3]} 45. Bg5+ {[%clk
0:00:12.9]} 45... Kg6 {[%clk 0:00:28]} 46. Na5 {[%clk 0:00:13.1]} 46... f6
{[%clk 0:00:25.2]} 47. Bc1 {[%clk 0:00:12.4]} 47... Na4 {[%clk 0:00:23.5]} 48.
Bd2 {[%clk 0:00:11.4]} 48... f5 {[%clk 0:00:23]} 49. Nb7 {[%clk 0:00:05.7]}
49... fxe4 {[%clk 0:00:21.1]} 50. Be1 {[%clk 0:00:06.3]} 50... Kf5 {[%clk
0:00:20.6]} 51. Nd8 {[%clk 0:00:05.9]} 51... Be7 {[%clk 0:00:19.3]} 52. Nb7
{[%clk 0:00:05.8]} 52... Nb6 {[%clk 0:00:18.6]} 53. Na5 {[%clk 0:00:01.9]} 53...
Nxd5 {[%clk 0:00:18.5]} 54. Nc6 {[%clk 0:00:01.7]} 54... Bf6 {[%clk 0:00:16.7]}
55. Na5 {[%clk 0:00:01.7]} 55... Nb6 {[%clk 0:00:16.6]} 56. Nb7 {[%clk
0:00:01.4]} 56... Ke6 {[%clk 0:00:15.2]} 57. Na5 {[%clk 0:00:02.1]} 57... d5
{[%clk 0:00:15.1]} 58. Nb3 {[%clk 0:00:02.3]} 58... Be7 {[%clk 0:00:15.3]} 59.
Nd2 {[%clk 0:00:02.6]} 59... Nc4 {[%clk 0:00:14.7]} 60. Nb3 {[%clk 0:00:02.3]}
60... d4 {[%clk 0:00:14.6]} 61. Bd2 {[%clk 0:00:01.3]} 61... d3+ {[%clk
0:00:14.1]} 62. Kf2 {[%clk 0:00:01]} 62... Nxd2 {[%clk 0:00:12.3]} 63. Nxd2
{[%clk 0:00:01.9]} 63... Kd5 {[%clk 0:00:12.8]} 64. Nf1 {[%clk 0:00:02.7]} 64...
Kc4 {[%clk 0:00:10.4]} 65. Ne3+ {[%clk 0:00:02.7]} 65... Kb3 {[%clk 0:00:09.8]}
66. Ke1 {[%clk 0:00:02.2]} 66... c4 {[%clk 0:00:08.4]} 67. Kd2 {[%clk
0:00:02.1]} 67... b4 {[%clk 0:00:08.3]} 68. Nd5 {[%clk 0:00:01.9]} 68... bxc3+
{[%clk 0:00:08.4]} 69. Ke3 {[%clk 0:00:01.7]} 69... Bc5+ {[%clk 0:00:08.4]} 70.
Kxe4 {[%clk 0:00:02.1]} 70... d2 {[%clk 0:00:08.5]} 71. Ne3 {[%clk 0:00:01.2]}
71... Bxe3 {[%clk 0:00:08.2]} 72. Kxe5 {[%clk 0:00:01.9]} 72... d1=Q {[%clk
0:00:08.7]} 0-1

[Event "Late-Titled-Tuesday-Blitz-July-09-2024"]
[Site "Chess.com"]
[Date "2024.07.09"]
[Round "2"]
[White "ninjatrick"]
[Black "PawnEatingZombie"]
[Result "1-0"]
[WhiteElo "2497"]
[BlackElo "2275"]
[TimeControl "180+1"]
[EndTime "14:19:33 PDT"]
[Termination "ninjatrick won on time"]

1. Nf3 {[%clk 0:03:00.4]} 1... g6 {[%clk 0:02:56.9]} 2. e3 {[%clk 0:02:59.3]}
2... d5 {[%clk 0:02:56.9]} 3. b3 {[%clk 0:02:58.6]} 3... Bg7 {[%clk 0:02:57]} 4.
d4 {[%clk 0:02:59.2]} 4... Nf6 {[%clk 0:02:54.8]} 5. Bb2 {[%clk 0:02:59.8]} 5...
O-O {[%clk 0:02:54.8]} 6. c4 {[%clk 0:03:00.4]} 6... b6 {[%clk 0:02:53.2]} 7.
Nbd2 {[%clk 0:02:58]} 7... Bb7 {[%clk 0:02:53.6]} 8. Bd3 {[%clk 0:02:58.1]} 8...
Nbd7 {[%clk 0:02:52.6]} 9. O-O {[%clk 0:02:58.5]} 9... c5 {[%clk 0:02:52.6]} 10.
Ne5 {[%clk 0:02:58.2]} 10... cxd4 {[%clk 0:02:43.6]} 11. exd4 {[%clk 0:02:59.1]}
11... dxc4 {[%clk 0:02:43.2]} 12. Ndxc4 {[%clk 0:02:52.9]} 12... b5 {[%clk
0:02:30.4]} 13. Nxd7 {[%clk 0:02:50]} 13... Nxd7 {[%clk 0:02:29.1]} 14. Ne3
{[%clk 0:02:42.6]} 14... a6 {[%clk 0:02:27.9]} 15. Qe2 {[%clk 0:02:41.3]} 15...
Nb6 {[%clk 0:02:19.7]} 16. Rad1 {[%clk 0:02:37.4]} 16... Nd5 {[%clk 0:02:18.2]}
17. Nxd5 {[%clk 0:02:31.7]} 17... Qxd5 {[%clk 0:02:11.3]} 18. Qg4 {[%clk
0:02:28.6]} 18... e6 {[%clk 0:01:51.7]} 19. Rfe1 {[%clk 0:02:24.8]} 19... Qd6
{[%clk 0:01:48.3]} 20. Be2 {[%clk 0:01:57]} 20... Rac8 {[%clk 0:01:44.4]} 21.
Rc1 {[%clk 0:01:55.3]} 21... h5 {[%clk 0:01:39.4]} 22. Qg5 {[%clk 0:01:48.3]}
22... Qd5 {[%clk 0:01:16.3]} 23. Qg3 {[%clk 0:01:24.8]} 23... Qd7 {[%clk
0:00:48.6]} 24. Qe3 {[%clk 0:01:13.3]} 24... Rfd8 {[%clk 0:00:44.9]} 25. Red1
{[%clk 0:00:45.8]} 25... Kh7 {[%clk 0:00:44.9]} 26. f4 {[%clk 0:00:43]} 26...
Bd5 {[%clk 0:00:39.1]} 27. Kh1 {[%clk 0:00:39.3]} 27... Qb7 {[%clk 0:00:38.5]}
28. Qf2 {[%clk 0:00:37.2]} 28... Be4 {[%clk 0:00:31.7]} 29. a3 {[%clk
0:00:33.7]} 29... Rxc1 {[%clk 0:00:30.2]} 30. Rxc1 {[%clk 0:00:33.7]} 30... Qd5
{[%clk 0:00:25.5]} 31. Qg3 {[%clk 0:00:33.6]} 31... Qf5 {[%clk 0:00:10.4]} 32.
Qf2 {[%clk 0:00:23]} 32... Bf6 {[%clk 0:00:09.7]} 33. Qe3 {[%clk 0:00:21.7]}
33... h4 {[%clk 0:00:09.2]} 34. h3 {[%clk 0:00:20.4]} 34... g5 {[%clk 0:00:08]}
35. Bg4 {[%clk 0:00:17.9]} 35... Qg6 {[%clk 0:00:06.9]} 36. Re1 {[%clk
0:00:13.3]} 36... Bf5 {[%clk 0:00:04.9]} 37. Bf3 {[%clk 0:00:12.7]} 37... gxf4
{[%clk 0:00:04.6]} 38. Qxf4 {[%clk 0:00:13.6]} 38... Bg5 {[%clk 0:00:05.1]} 39.
Qc7 {[%clk 0:00:12.1]} 39... Rf8 {[%clk 0:00:01.2]} 40. a4 {[%clk 0:00:11.1]}
40... Rg8 {[%clk 0:00:01.7]} 41. axb5 {[%clk 0:00:10.9]} 41... axb5 {[%clk
0:00:02.6]} 42. Qb7 {[%clk 0:00:09.6]} 42... Bd2 {[%clk 0:00:03.2]} 43. Rd1
{[%clk 0:00:07.9]} 43... Be3 {[%clk 0:00:02.7]} 44. Qxb5 {[%clk 0:00:07.5]}
44... Qg3 {[%clk 0:00:02.8]} 45. Qe2 {[%clk 0:00:07.5]} 45... Qf2 {[%clk
0:00:02.6]} 46. Qxf2 {[%clk 0:00:07.7]} 46... Bxf2 {[%clk 0:00:03.5]} 47. d5
{[%clk 0:00:07.4]} 47... Rd8 {[%clk 0:00:03.3]} 48. dxe6 {[%clk 0:00:07.6]}
48... Rxd1+ {[%clk 0:00:02.8]} 49. Bxd1 {[%clk 0:00:08.5]} 49... fxe6 {[%clk
0:00:03.3]} 50. b4 {[%clk 0:00:09]} 50... Bb6 {[%clk 0:00:03]} 51. b5 {[%clk
0:00:06.9]} 51... Kg6 {[%clk 0:00:03.3]} 52. Bf3 {[%clk 0:00:07]} 52... Bd3
{[%clk 0:00:03.1]} 53. Bc6 {[%clk 0:00:06.2]} 53... Kf5 {[%clk 0:00:03.7]} 54.
Bc3 {[%clk 0:00:04.9]} 54... Kf4 {[%clk 0:00:03.2]} 55. Be1 {[%clk 0:00:05.1]}
55... Kg5 {[%clk 0:00:02.1]} 56. g3 {[%clk 0:00:05.6]} 56... hxg3 {[%clk
0:00:01.6]} 57. Bxg3 {[%clk 0:00:06.5]} 57... Kf5 {[%clk 0:00:01.5]} 58. Kg2
{[%clk 0:00:06.9]} 58... e5 {[%clk 0:00:01.9]} 59. Kf3 {[%clk 0:00:06.4]} 59...
e4+ {[%clk 0:00:02.5]} 60. Kg2 {[%clk 0:00:06.2]} 60... e3 {[%clk 0:00:03]} 61.
h4 {[%clk 0:00:05.5]} 61... e2 {[%clk 0:00:03.3]} 62. Be1 {[%clk 0:00:06.2]}
62... Kg4 {[%clk 0:00:01.9]} 63. Bd7+ {[%clk 0:00:05.6]} 63... Kh5 {[%clk
0:00:01.6]} 64. Be8+ {[%clk 0:00:06]} 64... Kg4 {[%clk 0:00:01]} 65. h5 {[%clk
0:00:06.6]} 65... Kg5 {[%clk 0:00:01]} 66. Bd2+ {[%clk 0:00:06.2]} 66... Kf6
{[%clk 0:00:01]} 67. h6 {[%clk 0:00:06.8]} 1-0

[Event "Late-Titled-Tuesday-Blitz-July-09-2024"]
[Site "Chess.com"]
[Date "2024.07.09"]
[Round "2"]
[White "Kyrko_Gamba"]
[Black "Yaacovn"]
[Result "0-1"]
[WhiteElo "2523"]
[BlackElo "2794"]
[TimeControl "180+1"]
[EndTime "14:19:46 PDT"]
[Termination "Yaacovn won on time"]

1. c4 {[%clk 0:03:00.9]} 1... Nf6 {[%clk 0:02:09.9]} 2. Nc3 {[%clk 0:02:58.7]}
2... b6 {[%clk 0:02:07.9]} 3. g3 {[%clk 0:02:56.9]} 3... Bb7 {[%clk 0:02:00.5]}
4. Nf3 {[%clk 0:02:57.2]} 4... Bxf3 {[%clk 0:02:00.3]} 5. exf3 {[%clk 0:02:57]}
5... c5 {[%clk 0:02:00.4]} 6. Bg2 {[%clk 0:02:57]} 6... Nc6 {[%clk 0:01:59.3]}
7. O-O {[%clk 0:02:57]} 7... g6 {[%clk 0:01:59.4]} 8. b3 {[%clk 0:02:55.3]} 8...
Bg7 {[%clk 0:01:59.5]} 9. Bb2 {[%clk 0:02:55.7]} 9... O-O {[%clk 0:01:59.8]} 10.
Ne2 {[%clk 0:02:53.6]} 10... Ne8 {[%clk 0:01:58.5]} 11. Bxg7 {[%clk 0:02:52.9]}
11... Nxg7 {[%clk 0:01:58.9]} 12. d4 {[%clk 0:02:53.3]} 12... cxd4 {[%clk
0:01:58.8]} 13. Nxd4 {[%clk 0:02:54.2]} 13... Ne6 {[%clk 0:01:59]} 14. Nxe6
{[%clk 0:02:45.2]} 14... dxe6 {[%clk 0:01:59]} 15. f4 {[%clk 0:02:44.4]} 15...
Qc7 {[%clk 0:01:58.9]} 16. Qd3 {[%clk 0:02:37.1]} 16... Rad8 {[%clk 0:01:57.9]}
17. Qc3 {[%clk 0:02:37.4]} 17... Nd4 {[%clk 0:01:57.1]} 18. Rfe1 {[%clk
0:02:36.7]} 18... Rd6 {[%clk 0:01:55.8]} 19. h4 {[%clk 0:02:25.1]} 19... h5
{[%clk 0:01:55.6]} 20. Kh2 {[%clk 0:02:24.6]} 20... Rfd8 {[%clk 0:01:55.4]} 21.
Re5 {[%clk 0:02:24.5]} 21... Nf5 {[%clk 0:01:54]} 22. Rae1 {[%clk 0:02:19.5]}
22... Rd2 {[%clk 0:01:52.8]} 23. R1e2 {[%clk 0:02:18.5]} 23... R2d3 {[%clk
0:01:49.2]} 24. Qc1 {[%clk 0:02:08.6]} 24... Nh6 {[%clk 0:01:37.3]} 25. Bh3
{[%clk 0:02:05.7]} 25... Qc6 {[%clk 0:01:31.4]} 26. Qc2 {[%clk 0:02:01.6]} 26...
Rd1 {[%clk 0:01:30.6]} 27. Qe4 {[%clk 0:02:00.6]} 27... Qxe4 {[%clk 0:01:28.1]}
28. R5xe4 {[%clk 0:02:00.2]} 28... Ra1 {[%clk 0:01:26.6]} 29. Kg2 {[%clk
0:01:50.4]} 29... Kg7 {[%clk 0:01:26.1]} 30. Kf3 {[%clk 0:01:49.7]} 30... Kf6
{[%clk 0:01:22.9]} 31. Ke3 {[%clk 0:01:43.2]} 31... Rad1 {[%clk 0:01:11.8]} 32.
Kf3 {[%clk 0:01:39]} 32... R8d3+ {[%clk 0:01:08.8]} 33. R4e3 {[%clk 0:01:38.1]}
33... Rd4 {[%clk 0:01:07.2]} 34. Rc3 {[%clk 0:01:30.4]} 34... Ra1 {[%clk
0:00:58.5]} 35. Ke3 {[%clk 0:01:24.2]} 35... Rad1 {[%clk 0:00:57.6]} 36. b4
{[%clk 0:01:16.2]} 36... Rd8 {[%clk 0:00:54]} 37. c5 {[%clk 0:01:14.9]} 37...
bxc5 {[%clk 0:00:53.1]} 38. bxc5 {[%clk 0:01:14.9]} 38... R1d5 {[%clk
0:00:45.7]} 39. c6 {[%clk 0:01:10.4]} 39... R5d6 {[%clk 0:00:44.2]} 40. c7
{[%clk 0:01:09.2]} 40... Rc8 {[%clk 0:00:42.5]} 41. Rb2 {[%clk 0:01:09]} 41...
Rd7 {[%clk 0:00:41.5]} 42. Rb7 {[%clk 0:01:08.9]} 42... a5 {[%clk 0:00:40.8]}
43. Ke2 {[%clk 0:01:04.3]} 43... Nf5 {[%clk 0:00:39.8]} 44. Bxf5 {[%clk
0:01:01.4]} 44... exf5 {[%clk 0:00:39.6]} 45. a4 {[%clk 0:00:57.2]} 45... e6
{[%clk 0:00:39.4]} 46. Rc5 {[%clk 0:00:47.3]} 46... Ke7 {[%clk 0:00:37.6]} 47.
Rxa5 {[%clk 0:00:41.6]} 47... Rcxc7 {[%clk 0:00:36.4]} 48. Rxc7 {[%clk
0:00:41.7]} 48... Rxc7 {[%clk 0:00:37.3]} 49. Ra8 {[%clk 0:00:40.8]} 49... Rc2+
{[%clk 0:00:37.1]} 50. Kf3 {[%clk 0:00:40.5]} 50... Ra2 {[%clk 0:00:37.5]} 51.
a5 {[%clk 0:00:40.3]} 51... Ra3+ {[%clk 0:00:37.8]} 52. Ke2 {[%clk 0:00:39.8]}
52... Ra2+ {[%clk 0:00:36.6]} 53. Ke3 {[%clk 0:00:39.1]} 53... Ra3+ {[%clk
0:00:37.1]} 54. Kd4 {[%clk 0:00:22.9]} 54... Rf3 {[%clk 0:00:35.1]} 55. a6
{[%clk 0:00:14.1]} 55... Rxf2 {[%clk 0:00:34.7]} 56. Kc5 {[%clk 0:00:11.4]}
56... Ra2 {[%clk 0:00:22.3]} 57. Kb5 {[%clk 0:00:11.1]} 57... Rb2+ {[%clk
0:00:21.3]} 58. Kc6 {[%clk 0:00:11]} 58... Rc2+ {[%clk 0:00:21.4]} 59. Kb6
{[%clk 0:00:09.7]} 59... Rb2+ {[%clk 0:00:21.6]} 60. Ka5 {[%clk 0:00:05.4]}
60... Ra2+ {[%clk 0:00:21.3]} 61. Kb4 {[%clk 0:00:05.6]} 61... Kf6 {[%clk
0:00:19]} 62. Kb5 {[%clk 0:00:03]} 62... Rb2+ {[%clk 0:00:18.9]} 63. Kc4 {[%clk
0:00:03]} 63... Ra2 {[%clk 0:00:18.7]} 64. Kb5 {[%clk 0:00:03.1]} 64... e5
{[%clk 0:00:17.8]} 65. fxe5+ {[%clk 0:00:02.9]} 65... Kxe5 {[%clk 0:00:18.7]}
66. Rc8 {[%clk 0:00:03]} 66... f4 {[%clk 0:00:18.5]} 67. gxf4+ {[%clk
0:00:02.5]} 67... Kxf4 {[%clk 0:00:19.4]} 68. Rc4+ {[%clk 0:00:02.7]} 68... Kg3
{[%clk 0:00:17.7]} 69. Ra4 {[%clk 0:00:02.3]} 69... Rb2+ {[%clk 0:00:17.8]} 70.
Kc6 {[%clk 0:00:01.7]} 70... Rb8 {[%clk 0:00:18.3]} 71. a7 {[%clk 0:00:02.6]}
71... Rg8 {[%clk 0:00:16.4]} 72. Kd6 {[%clk 0:00:02.5]} 72... g5 {[%clk
0:00:14.3]} 73. hxg5 {[%clk 0:00:02.8]} 73... h4 {[%clk 0:00:14.5]} 74. Ke7
{[%clk 0:00:02.9]} 74... h3 {[%clk 0:00:13]} 75. Kxf7 {[%clk 0:00:03.5]} 75...
Ra8 {[%clk 0:00:10.1]} 76. g6 {[%clk 0:00:03.6]} 76... h2 {[%clk 0:00:10.5]} 77.
Ra1 {[%clk 0:00:01.7]} 77... Rxa7+ {[%clk 0:00:07.8]} 0-1

[Event "Late-Titled-Tuesday-Blitz-July-09-2024"]
[Site "Chess.com"]
[Date "2024.07.09"]
[Round "2"]
[White "Oleg_Papayan"]
[Black "Arystanner"]
[Result "1/2-1/2"]
[WhiteElo "2611"]
[BlackElo "2907"]
[TimeControl "180+1"]
[EndTime "14:20:27 PDT"]
[Termination "Game drawn - insufficient material"]

1. d4 {[%clk 0:03:00.9]} 1... Nf6 {[%clk 0:02:56.8]} 2. Nc3 {[%clk 0:03:00.2]}
2... d5 {[%clk 0:02:56.5]} 3. Bf4 {[%clk 0:03:00.3]} 3... Bd7 {[%clk 0:02:56.7]}
4. Nf3 {[%clk 0:02:55.2]} 4... e6 {[%clk 0:02:56.5]} 5. e3 {[%clk 0:02:52.7]}
5... c5 {[%clk 0:02:56.6]} 6. Ne5 {[%clk 0:02:32.5]} 6... Bc6 {[%clk 0:02:55.6]}
7. Bd3 {[%clk 0:02:26.9]} 7... Nbd7 {[%clk 0:02:55.7]} 8. Nxc6 {[%clk
0:02:25.8]} 8... bxc6 {[%clk 0:02:55.8]} 9. O-O {[%clk 0:02:21.3]} 9... c4
{[%clk 0:02:55.9]} 10. Be2 {[%clk 0:02:21.1]} 10... Bb4 {[%clk 0:02:56.6]} 11.
Na4 {[%clk 0:02:07.9]} 11... O-O {[%clk 0:02:55]} 12. c3 {[%clk 0:02:08.4]}
12... Be7 {[%clk 0:02:55.1]} 13. b4 {[%clk 0:02:08.8]} 13... cxb3 {[%clk
0:02:18.2]} 14. axb3 {[%clk 0:02:09.7]} 14... c5 {[%clk 0:02:16.3]} 15. c4
{[%clk 0:01:58.3]} 15... Rc8 {[%clk 0:01:46.5]} 16. Nc3 {[%clk 0:01:32.2]} 16...
cxd4 {[%clk 0:01:44.6]} 17. exd4 {[%clk 0:01:28.7]} 17... Bb4 {[%clk 0:01:44]}
18. Nb5 {[%clk 0:01:21.6]} 18... a5 {[%clk 0:01:43.6]} 19. c5 {[%clk 0:01:12.2]}
19... Ne4 {[%clk 0:01:36.9]} 20. Qd3 {[%clk 0:01:01]} 20... e5 {[%clk 0:01:36]}
21. Bxe5 {[%clk 0:00:38.9]} 21... Nxe5 {[%clk 0:01:33.4]} 22. dxe5 {[%clk
0:00:39.8]} 22... Nxc5 {[%clk 0:01:33.9]} 23. Qe3 {[%clk 0:00:27.9]} 23... Ne6
{[%clk 0:01:34]} 24. Rfd1 {[%clk 0:00:24.8]} 24... Bc5 {[%clk 0:01:07.8]} 25.
Qf3 {[%clk 0:00:24.9]} 25... d4 {[%clk 0:01:07.2]} 26. Bc4 {[%clk 0:00:24.9]}
26... Qg5 {[%clk 0:01:04.4]} 27. Nd6 {[%clk 0:00:19.6]} 27... Bxd6 {[%clk
0:00:50.5]} 28. exd6 {[%clk 0:00:20.5]} 28... Qe5 {[%clk 0:00:45]} 29. Qd5
{[%clk 0:00:19.4]} 29... Qxd5 {[%clk 0:00:37.3]} 30. Bxd5 {[%clk 0:00:20.3]}
30... Nf4 {[%clk 0:00:37.8]} 31. Rxa5 {[%clk 0:00:14.8]} 31... Rfd8 {[%clk
0:00:35.8]} 32. Bxf7+ {[%clk 0:00:11]} 32... Kxf7 {[%clk 0:00:31.7]} 33. Rf5+
{[%clk 0:00:10.8]} 33... Ke6 {[%clk 0:00:32.4]} 34. Rxf4 {[%clk 0:00:11.7]}
34... Rxd6 {[%clk 0:00:33]} 35. Re4+ {[%clk 0:00:09.3]} 35... Kf5 {[%clk
0:00:31.4]} 36. f3 {[%clk 0:00:08.5]} 36... d3 {[%clk 0:00:30.1]} 37. Re3 {[%clk
0:00:05]} 37... d2 {[%clk 0:00:30]} 38. Kf2 {[%clk 0:00:05.5]} 38... Rc2 {[%clk
0:00:25]} 39. Ke2 {[%clk 0:00:05.6]} 39... Rb2 {[%clk 0:00:25.6]} 40. g3 {[%clk
0:00:03.8]} 40... h5 {[%clk 0:00:25.1]} 41. h4 {[%clk 0:00:03.5]} 41... g6
{[%clk 0:00:25.6]} 42. Kf2 {[%clk 0:00:03.6]} 42... Ra2 {[%clk 0:00:22]} 43. Re2
{[%clk 0:00:03.8]} 43... Rb2 {[%clk 0:00:21.8]} 44. Re3 {[%clk 0:00:02]} 44...
Rd7 {[%clk 0:00:22.1]} 45. Re2 {[%clk 0:00:02.1]} 45... Kf6 {[%clk 0:00:19.9]}
46. Re4 {[%clk 0:00:02.2]} 46... Rxb3 {[%clk 0:00:19.6]} 47. Re2 {[%clk
0:00:02.4]} 47... Rbd3 {[%clk 0:00:19.7]} 48. Re3 {[%clk 0:00:02]} 48... R3d6
{[%clk 0:00:19.3]} 49. Ke2 {[%clk 0:00:02.4]} 49... g5 {[%clk 0:00:17.6]} 50.
hxg5+ {[%clk 0:00:02.4]} 50... Kxg5 {[%clk 0:00:18.5]} 51. Re5+ {[%clk
0:00:02.7]} 51... Kg6 {[%clk 0:00:19]} 52. Re3 {[%clk 0:00:01.8]} 52... Kh6
{[%clk 0:00:19]} 53. Re4 {[%clk 0:00:02.4]} 53... Rg7 {[%clk 0:00:18.4]} 54. g4
{[%clk 0:00:02.3]} 54... hxg4 {[%clk 0:00:17.5]} 55. Rxg4 {[%clk 0:00:03.2]}
55... Rgd7 {[%clk 0:00:17.7]} 56. Re4 {[%clk 0:00:03.5]} 56... Kg5 {[%clk
0:00:17.5]} 57. Re3 {[%clk 0:00:04.1]} 57... Kf4 {[%clk 0:00:17.7]} 58. Re4+
{[%clk 0:00:04.7]} 58... Kf5 {[%clk 0:00:18.2]} 59. Re3 {[%clk 0:00:05.1]} 59...
Rd4 {[%clk 0:00:18.5]} 60. Re4 {[%clk 0:00:04.6]} 60... R4d6 {[%clk 0:00:17.9]}
61. Re3 {[%clk 0:00:05.1]} 61... Rh6 {[%clk 0:00:18.4]} 62. Kf2 {[%clk
0:00:03.8]} 62... Rd4 {[%clk 0:00:15.9]} 63. Re4 {[%clk 0:00:03]} 63... Rd8
{[%clk 0:00:12.7]} 64. Ke3 {[%clk 0:00:03.3]} 64... Rh2 {[%clk 0:00:10.9]} 65.
Rf4+ {[%clk 0:00:03.1]} 65... Ke5 {[%clk 0:00:10.7]} 66. Re4+ {[%clk 0:00:03.6]}
66... Kf6 {[%clk 0:00:11.1]} 67. Rf4+ {[%clk 0:00:03.5]} 67... Kg5 {[%clk
0:00:11.5]} 68. Rg4+ {[%clk 0:00:03.8]} 68... Kh5 {[%clk 0:00:11.6]} 69. Rd4
{[%clk 0:00:03.9]} 69... Re8+ {[%clk 0:00:11.1]} 70. Re4 {[%clk 0:00:04.3]}
70... Ra8 {[%clk 0:00:09.8]} 71. Rxd2 {[%clk 0:00:02.7]} 71... Ra3+ {[%clk
0:00:09.9]} 72. Rd3 {[%clk 0:00:02.8]} 72... Rxd3+ {[%clk 0:00:10.1]} 73. Kxd3
{[%clk 0:00:03.1]} 73... Kg5 {[%clk 0:00:11]} 74. Ke3 {[%clk 0:00:03.6]} 74...
Kf5 {[%clk 0:00:11.5]} 75. Rg4 {[%clk 0:00:04.1]} 75... Ra2 {[%clk 0:00:11.3]}
76. Re4 {[%clk 0:00:04.6]} 76... Ra3+ {[%clk 0:00:11.8]} 77. Kf2 {[%clk
0:00:05.2]} 77... Ra1 {[%clk 0:00:12]} 78. Kg3 {[%clk 0:00:05.6]} 78... Rg1+
{[%clk 0:00:12.3]} 79. Kf2 {[%clk 0:00:06.2]} 79... Ra1 {[%clk 0:00:13.2]} 80.
Rb4 {[%clk 0:00:06.3]} 80... Rc1 {[%clk 0:00:12.4]} 81. Rb5+ {[%clk 0:00:06.3]}
81... Kf4 {[%clk 0:00:12.5]} 82. Rb4+ {[%clk 0:00:06.8]} 82... Kf5 {[%clk
0:00:13.1]} 83. Kg3 {[%clk 0:00:07.3]} 83... Rg1+ {[%clk 0:00:13]} 84. Kf2
{[%clk 0:00:07.7]} 84... Ra1 {[%clk 0:00:13.9]} 85. f4 {[%clk 0:00:07.5]} 85...
Ra3 {[%clk 0:00:12.6]} 86. Rc4 {[%clk 0:00:07.3]} 86... Kg4 {[%clk 0:00:12.9]}
87. Rb4 {[%clk 0:00:07.1]} 87... Rf3+ {[%clk 0:00:13.1]} 88. Ke2 {[%clk
0:00:07.5]} 88... Ra3 {[%clk 0:00:13.8]} 89. Kd2 {[%clk 0:00:07.3]} 89... Rf3
{[%clk 0:00:13.5]} 90. Rd4 {[%clk 0:00:07.1]} 90... Rh3 {[%clk 0:00:13.8]} 91.
Kc2 {[%clk 0:00:07.4]} 91... Kf5 {[%clk 0:00:14.4]} 92. Kd2 {[%clk 0:00:07.3]}
92... Rf3 {[%clk 0:00:15]} 93. Rc4 {[%clk 0:00:07.5]} 93... Ra3 {[%clk 0:00:15]}
94. Ke2 {[%clk 0:00:07.9]} 94... Rb3 {[%clk 0:00:15.2]} 95. Kf2 {[%clk
0:00:08.3]} 95... Rh3 {[%clk 0:00:15.2]} 96. Kg2 {[%clk 0:00:08.5]} 96... Rd3
{[%clk 0:00:15.3]} 97. Rb4 {[%clk 0:00:08.2]} 97... Kg4 {[%clk 0:00:15.6]} 98.
Kf2 {[%clk 0:00:08.4]} 98... Kf5 {[%clk 0:00:15.2]} 99. Ke2 {[%clk 0:00:08.7]}
99... Ra3 {[%clk 0:00:15.5]} 100. Kd2 {[%clk 0:00:09.1]} 100... Rh3 {[%clk
0:00:15.5]} 101. Kc2 {[%clk 0:00:09.5]} 101... Rg3 {[%clk 0:00:15.9]} 102. Kb2
{[%clk 0:00:09.9]} 102... Rf3 {[%clk 0:00:16.3]} 103. Rc4 {[%clk 0:00:10.3]}
103... Rxf4 {[%clk 0:00:16.8]} 104. Rxf4+ {[%clk 0:00:10.2]} 104... Kxf4 {[%clk
0:00:17.7]} 1/2-1/2